[Event "Early-Titled-Tuesday-Blitz-January-30-2024"]
[Site "Chess.com"]
[Date "2024.01.30"]
[Round "3"]
[White "Hongjin"]
[Black "Firouzja2003"]
[Result "0-1"]
[WhiteElo "2805"]
[BlackElo "3152"]
[TimeControl "180+1"]
[EndTime "8:31:13 PST"]
[Termination "Firouzja2003 won by resignation"]

1. c4 {[%clk 0:02:59.7]} 1... e5 {[%clk 0:02:59.3]} 2. Nc3 {[%clk 0:02:59.4]}
2... Be7 {[%clk 0:02:59.2]} 3. Nf3 {[%clk 0:02:59.4]} 3... d6 {[%clk 0:02:58.4]}
4. d4 {[%clk 0:02:56]} 4... Nd7 {[%clk 0:02:58.5]} 5. g3 {[%clk 0:02:55.7]} 5...
f5 {[%clk 0:02:53.4]} 6. Bg2 {[%clk 0:02:55.9]} 6... e4 {[%clk 0:02:53.4]} 7.
Nd2 {[%clk 0:02:55.1]} 7... Ngf6 {[%clk 0:02:53.8]} 8. O-O {[%clk 0:02:55.5]}
8... O-O {[%clk 0:02:53.8]} 9. b3 {[%clk 0:02:54.8]} 9... c6 {[%clk 0:02:53.8]}
10. Bb2 {[%clk 0:02:55]} 10... d5 {[%clk 0:02:54]} 11. e3 {[%clk 0:02:54.8]}
11... a6 {[%clk 0:02:51.9]} 12. a4 {[%clk 0:02:53.2]} 12... Bd6 {[%clk
0:02:45.7]} 13. Qc1 {[%clk 0:02:50.9]} 13... Rf7 {[%clk 0:02:40.7]} 14. Ba3
{[%clk 0:02:50.8]} 14... Nf8 {[%clk 0:02:41.2]} 15. a5 {[%clk 0:02:44.9]} 15...
g5 {[%clk 0:02:40.8]} 16. Na4 {[%clk 0:02:43.2]} 16... Bxa3 {[%clk 0:02:32.6]}
17. Qxa3 {[%clk 0:02:42.6]} 17... Qxa5 {[%clk 0:02:30.4]} 18. b4 {[%clk
0:02:30.4]} 18... Qd8 {[%clk 0:02:28.1]} 19. Rfc1 {[%clk 0:02:26.3]} 19... f4
{[%clk 0:02:25.1]} 20. cxd5 {[%clk 0:02:16.6]} 20... cxd5 {[%clk 0:02:19.3]} 21.
exf4 {[%clk 0:02:14]} 21... gxf4 {[%clk 0:02:19.2]} 22. Nc5 {[%clk 0:02:04.8]}
22... Ng4 {[%clk 0:02:18.7]} 23. h3 {[%clk 0:01:56.9]} 23... Nxf2 {[%clk
0:02:18]} 24. Kxf2 {[%clk 0:01:51.2]} 24... e3+ {[%clk 0:02:16]} 25. Kg1 {[%clk
0:01:46.9]} 25... exd2 {[%clk 0:02:16.2]} 26. Rd1 {[%clk 0:01:46.6]} 26... fxg3
{[%clk 0:02:01.4]} 27. Qxg3+ {[%clk 0:01:43.1]} 27... Rg7 {[%clk 0:02:01.4]} 28.
Qf3 {[%clk 0:01:38.1]} 28... Qg5 {[%clk 0:01:57.5]} 29. Kh1 {[%clk 0:01:34.6]}
29... Bf5 {[%clk 0:01:56.2]} 30. Ra2 {[%clk 0:01:21.3]} 30... Rd8 {[%clk
0:01:48.6]} 31. Raxd2 {[%clk 0:01:18.3]} 31... Ng6 {[%clk 0:01:41.8]} 32. Rf2
{[%clk 0:00:59]} 32... Nh4 {[%clk 0:01:38.5]} 33. Qf4 {[%clk 0:00:51.8]} 33...
Qxf4 {[%clk 0:01:35.1]} 34. Rxf4 {[%clk 0:00:52]} 34... Nxg2 {[%clk 0:01:36]}
35. Rxf5 {[%clk 0:00:51.6]} 35... Ne3 {[%clk 0:01:36.7]} 36. Ne6 {[%clk
0:00:44.1]} 36... Nxf5 {[%clk 0:00:56.2]} 37. Nxd8 {[%clk 0:00:43.3]} 37... Rd7
{[%clk 0:00:51.2]} 38. Ne6 {[%clk 0:00:41.9]} 38... Kf7 {[%clk 0:00:50.2]} 39.
Nc5 {[%clk 0:00:39.6]} 39... Re7 {[%clk 0:00:50.8]} 40. Rf1 {[%clk 0:00:33.9]}
40... Kg6 {[%clk 0:00:50.3]} 41. Rf4 {[%clk 0:00:31.4]} 41... h5 {[%clk
0:00:48.6]} 42. Nd3 {[%clk 0:00:29.9]} 42... Kg5 {[%clk 0:00:48.3]} 43. h4+
{[%clk 0:00:14.7]} 43... Nxh4 {[%clk 0:00:47.4]} 44. Rf2 {[%clk 0:00:13.3]}
44... Nf5 {[%clk 0:00:35.9]} 45. Nf4 {[%clk 0:00:13]} 45... Re4 {[%clk
0:00:32.1]} 46. Nxd5 {[%clk 0:00:11.6]} 46... Rxd4 {[%clk 0:00:32.2]} 47. Nc7
{[%clk 0:00:07]} 47... Rxb4 {[%clk 0:00:28.7]} 48. Kh2 {[%clk 0:00:04.5]} 48...
Rh4+ {[%clk 0:00:25.2]} 49. Kg1 {[%clk 0:00:04.2]} 49... Re4 {[%clk 0:00:25.8]}
50. Nd5 {[%clk 0:00:03.5]} 50... Re1+ {[%clk 0:00:25]} 51. Kh2 {[%clk
0:00:03.1]} 51... Ne3 {[%clk 0:00:24.7]} 52. Nxe3 {[%clk 0:00:01.2]} 52... Rxe3
{[%clk 0:00:25.6]} 53. Rb2 {[%clk 0:00:01.8]} 53... b5 {[%clk 0:00:25.2]} 54.
Ra2 {[%clk 0:00:02.1]} 54... Re6 {[%clk 0:00:25.8]} 55. Rb2 {[%clk 0:00:02.4]}
55... Rb6 {[%clk 0:00:25.6]} 56. Kg2 {[%clk 0:00:03.1]} 56... a5 {[%clk
0:00:25.8]} 57. Kf3 {[%clk 0:00:03.8]} 57... b4 {[%clk 0:00:25.8]} 58. Ke4
{[%clk 0:00:04.5]} 58... b3 {[%clk 0:00:26.1]} 59. Kd4 {[%clk 0:00:04.8]} 59...
a4 {[%clk 0:00:26.5]} 60. Kc3 {[%clk 0:00:05.5]} 60... a3 {[%clk 0:00:25.5]} 61.
Rg2+ {[%clk 0:00:05.3]} 61... Kh6 {[%clk 0:00:25.3]} 0-1

[Event "Early-Titled-Tuesday-Blitz-January-30-2024"]
[Site "Chess.com"]
[Date "2024.01.30"]
[Round "3"]
[White "jamengrand"]
[Black "Byniolus"]
[Result "0-1"]
[WhiteElo "2259"]
[BlackElo "2824"]
[TimeControl "180+1"]
[EndTime "8:31:13 PST"]
[Termination "Byniolus won by resignation"]

1. e4 {[%clk 0:03:00.9]} 1... d6 {[%clk 0:02:58.8]} 2. d4 {[%clk 0:03:00.6]}
2... Nf6 {[%clk 0:02:59.5]} 3. Nc3 {[%clk 0:03:00.7]} 3... c6 {[%clk 0:02:59.7]}
4. h3 {[%clk 0:02:59.1]} 4... b5 {[%clk 0:02:59.6]} 5. e5 {[%clk 0:02:55.8]}
5... dxe5 {[%clk 0:02:59]} 6. dxe5 {[%clk 0:02:55.8]} 6... Qxd1+ {[%clk
0:02:59.9]} 7. Nxd1 {[%clk 0:02:55.7]} 7... Nd5 {[%clk 0:02:55.8]} 8. c4 {[%clk
0:02:50.6]} 8... bxc4 {[%clk 0:02:39.9]} 9. Bxc4 {[%clk 0:02:50.2]} 9... Ba6
{[%clk 0:02:39.4]} 10. Bxa6 {[%clk 0:02:34.3]} 10... Nxa6 {[%clk 0:02:40.3]} 11.
Nf3 {[%clk 0:02:23.3]} 11... e6 {[%clk 0:02:36.5]} 12. O-O {[%clk 0:02:23]}
12... Bc5 {[%clk 0:02:31.9]} 13. Ng5 {[%clk 0:02:11.5]} 13... O-O {[%clk
0:02:25]} 14. Ne4 {[%clk 0:02:11.5]} 14... Bd4 {[%clk 0:02:24.1]} 15. Rb1 {[%clk
0:02:07.4]} 15... Bxe5 {[%clk 0:02:18.7]} 16. Ne3 {[%clk 0:02:01.5]} 16... Rfd8
{[%clk 0:01:59.1]} 17. Nc4 {[%clk 0:02:00.5]} 17... Bd4 {[%clk 0:01:56.9]} 18.
Rd1 {[%clk 0:01:27.2]} 18... c5 {[%clk 0:01:49.1]} 19. a3 {[%clk 0:01:10.2]}
19... h6 {[%clk 0:01:42.6]} 20. Kf1 {[%clk 0:01:02.6]} 20... f5 {[%clk
0:01:37.3]} 21. Ng3 {[%clk 0:01:02.9]} 21... Nac7 {[%clk 0:01:13.9]} 22. Ne2
{[%clk 0:00:55.2]} 22... Bf6 {[%clk 0:01:13.6]} 23. Na5 {[%clk 0:00:45.6]} 23...
Nb5 {[%clk 0:00:50.3]} 24. Nf4 {[%clk 0:00:32.5]} 24... Kf7 {[%clk 0:00:37.2]}
25. Nxd5 {[%clk 0:00:24.5]} 25... Rxd5 {[%clk 0:00:34.7]} 26. Be3 {[%clk
0:00:24.6]} 26... Rc8 {[%clk 0:00:23.3]} 27. Rdc1 {[%clk 0:00:23.7]} 27... Bd4
{[%clk 0:00:10.8]} 28. b4 {[%clk 0:00:15]} 28... Bxe3 {[%clk 0:00:10.7]} 29.
fxe3 {[%clk 0:00:15.1]} 29... Rc7 {[%clk 0:00:08.4]} 30. bxc5 {[%clk 0:00:12.6]}
30... Nxa3 {[%clk 0:00:06.5]} 31. Rb3 {[%clk 0:00:11]} 31... Rcxc5 {[%clk
0:00:03.2]} 32. Rxc5 {[%clk 0:00:11.1]} 32... Rxc5 {[%clk 0:00:04.1]} 33. Rxa3
{[%clk 0:00:11.6]} 33... Rc2 {[%clk 0:00:03]} 34. Nb7 {[%clk 0:00:09.8]} 34...
Kf6 {[%clk 0:00:02.6]} 35. Rxa7 {[%clk 0:00:09.8]} 35... Rc7 {[%clk 0:00:03]}
36. Kf2 {[%clk 0:00:08]} 36... g5 {[%clk 0:00:03.5]} 37. g3 {[%clk 0:00:07.8]}
37... h5 {[%clk 0:00:03.9]} 38. Kf3 {[%clk 0:00:07.5]} 38... Kg6 {[%clk
0:00:03.4]} 39. h4 {[%clk 0:00:07.1]} 39... Kf6 {[%clk 0:00:03.3]} 40. hxg5+
{[%clk 0:00:07]} 40... Kxg5 {[%clk 0:00:04.2]} 41. Kg2 {[%clk 0:00:05.8]} 41...
e5 {[%clk 0:00:04.2]} 42. Kh3 {[%clk 0:00:05.5]} 42... e4 {[%clk 0:00:02.8]} 43.
Kh2 {[%clk 0:00:04.6]} 43... Rd7 {[%clk 0:00:03.4]} 44. Kh3 {[%clk 0:00:04.9]}
44... Rc7 {[%clk 0:00:04]} 45. Kh2 {[%clk 0:00:05.3]} 45... Kg4 {[%clk
0:00:04.5]} 46. Kg2 {[%clk 0:00:03.7]} 46... Rc2+ {[%clk 0:00:04.3]} 47. Kf1
{[%clk 0:00:04.1]} 47... Kf3 {[%clk 0:00:04.2]} 48. Ke1 {[%clk 0:00:04.6]} 48...
Kxg3 {[%clk 0:00:03.5]} 49. Nd8 {[%clk 0:00:02.7]} 49... h4 {[%clk 0:00:03]} 50.
Rg7+ {[%clk 0:00:01.6]} 50... Kf3 {[%clk 0:00:03.1]} 51. Rh7 {[%clk 0:00:02.5]}
51... Kxe3 {[%clk 0:00:03.4]} 52. Kd1 {[%clk 0:00:02.4]} 52... Rd2+ {[%clk
0:00:03.9]} 53. Kc1 {[%clk 0:00:02.6]} 53... Rxd8 {[%clk 0:00:04.8]} 54. Rxh4
{[%clk 0:00:02.8]} 54... f4 {[%clk 0:00:05.4]} 55. Rh3+ {[%clk 0:00:03.3]} 55...
f3 {[%clk 0:00:06]} 0-1

[Event "Early-Titled-Tuesday-Blitz-January-30-2024"]
[Site "Chess.com"]
[Date "2024.01.30"]
[Round "3"]
[White "arenal72"]
[Black "Nekoo04"]
[Result "0-1"]
[WhiteElo "2578"]
[BlackElo "2404"]
[TimeControl "180+1"]
[EndTime "8:31:14 PST"]
[Termination "Nekoo04 won on time"]

1. d4 {[%clk 0:03:00.9]} 1... Nf6 {[%clk 0:02:57.5]} 2. Nc3 {[%clk 0:03:00]}
2... e6 {[%clk 0:02:58.1]} 3. e4 {[%clk 0:02:58.6]} 3... d6 {[%clk 0:02:51.3]}
4. Bg5 {[%clk 0:02:50.8]} 4... Be7 {[%clk 0:02:50.3]} 5. Bd3 {[%clk 0:02:45.9]}
5... h6 {[%clk 0:02:23.8]} 6. Bf4 {[%clk 0:02:27.9]} 6... Nbd7 {[%clk
0:01:59.1]} 7. e5 {[%clk 0:02:22.3]} 7... dxe5 {[%clk 0:01:58.2]} 8. dxe5 {[%clk
0:02:21.8]} 8... Nd5 {[%clk 0:01:59.1]} 9. Nxd5 {[%clk 0:02:17.2]} 9... exd5
{[%clk 0:02:00]} 10. Nf3 {[%clk 0:02:14.3]} 10... g5 {[%clk 0:01:56.2]} 11. Bg3
{[%clk 0:02:07.7]} 11... Nc5 {[%clk 0:01:54.8]} 12. h4 {[%clk 0:02:00.8]} 12...
Bg4 {[%clk 0:01:38.2]} 13. hxg5 {[%clk 0:01:48]} 13... Bxg5 {[%clk 0:01:37.2]}
14. Be2 {[%clk 0:01:20.7]} 14... Bxf3 {[%clk 0:00:53.2]} 15. Bxf3 {[%clk
0:01:15.9]} 15... c6 {[%clk 0:00:53.7]} 16. Bg4 {[%clk 0:00:43]} 16... Qb6
{[%clk 0:00:39.9]} 17. Qd4 {[%clk 0:00:34]} 17... Ne4 {[%clk 0:00:18.3]} 18.
Qxb6 {[%clk 0:00:26.4]} 18... axb6 {[%clk 0:00:19.2]} 19. Bh2 {[%clk 0:00:25.7]}
19... h5 {[%clk 0:00:09.7]} 20. Bf5 {[%clk 0:00:24.9]} 20... Nc5 {[%clk
0:00:08.5]} 21. Ke2 {[%clk 0:00:20.1]} 21... Ne6 {[%clk 0:00:07.9]} 22. c3
{[%clk 0:00:13.6]} 22... Ke7 {[%clk 0:00:07.1]} 23. Rhe1 {[%clk 0:00:09]} 23...
h4 {[%clk 0:00:06.9]} 24. Kf1 {[%clk 0:00:07.6]} 24... Ra4 {[%clk 0:00:06.5]}
25. b3 {[%clk 0:00:06.7]} 25... Ra5 {[%clk 0:00:05.1]} 26. a4 {[%clk 0:00:06.8]}
26... Rha8 {[%clk 0:00:03.5]} 27. Bc2 {[%clk 0:00:05.5]} 27... b5 {[%clk
0:00:03.9]} 28. b4 {[%clk 0:00:05.7]} 28... R5a7 {[%clk 0:00:04]} 29. a5 {[%clk
0:00:06.2]} 29... b6 {[%clk 0:00:03.9]} 30. Ra2 {[%clk 0:00:04.7]} 30... bxa5
{[%clk 0:00:04]} 31. Rea1 {[%clk 0:00:03.2]} 31... a4 {[%clk 0:00:04.7]} 32. Re1
{[%clk 0:00:03.4]} 32... Bd2 {[%clk 0:00:04.3]} 33. Re2 {[%clk 0:00:03.5]} 33...
Bxc3 {[%clk 0:00:04.8]} 34. f4 {[%clk 0:00:04]} 34... Nd4 {[%clk 0:00:03.8]} 35.
Rf2 {[%clk 0:00:03.5]} 35... Bxb4 {[%clk 0:00:03.5]} 36. Bd3 {[%clk 0:00:03.1]}
36... Bc5 {[%clk 0:00:03.9]} 37. f5 {[%clk 0:00:03.2]} 37... b4 {[%clk
0:00:04.2]} 38. f6+ {[%clk 0:00:03.3]} 38... Kd7 {[%clk 0:00:04.7]} 39. Rf4
{[%clk 0:00:03.5]} 39... Ne6 {[%clk 0:00:04.2]} 40. Rxh4 {[%clk 0:00:02.8]}
40... b3 {[%clk 0:00:04.7]} 41. Rb2 {[%clk 0:00:02.2]} 41... a3 {[%clk
0:00:04.1]} 42. Rxb3 {[%clk 0:00:02.8]} 42... a2 {[%clk 0:00:04.7]} 43. Rb1
{[%clk 0:00:03.2]} 43... axb1=Q+ {[%clk 0:00:04.3]} 44. Bxb1 {[%clk 0:00:04.1]}
44... Ra2 {[%clk 0:00:04.5]} 45. Rh7 {[%clk 0:00:04.6]} 45... Ra1 {[%clk
0:00:04.5]} 46. Rxf7+ {[%clk 0:00:04.6]} 46... Ke8 {[%clk 0:00:05.2]} 47. Rh7
{[%clk 0:00:04.5]} 47... Rxb1+ {[%clk 0:00:05.7]} 48. Ke2 {[%clk 0:00:05.2]}
48... Ra2+ {[%clk 0:00:06]} 49. Kf3 {[%clk 0:00:05.6]} 49... Rf2+ {[%clk
0:00:05.8]} 50. Kg3 {[%clk 0:00:05.7]} 50... Rb3+ {[%clk 0:00:05.5]} 51. Kh4
{[%clk 0:00:05.3]} 51... Rxg2 {[%clk 0:00:06]} 52. Rh8+ {[%clk 0:00:04.1]} 52...
Kf7 {[%clk 0:00:06.1]} 0-1

[Event "Early-Titled-Tuesday-Blitz-January-30-2024"]
[Site "Chess.com"]
[Date "2024.01.30"]
[Round "3"]
[White "Sam_ChessMood"]
[Black "Chessdreamer2020"]
[Result "0-1"]
[WhiteElo "2901"]
[BlackElo "2561"]
[TimeControl "180+1"]
[EndTime "8:31:15 PST"]
[Termination "Chessdreamer2020 won on time"]

1. d4 {[%clk 0:02:59.9]} 1... d5 {[%clk 0:02:57.2]} 2. c4 {[%clk 0:02:59.7]}
2... c6 {[%clk 0:02:57.6]} 3. Nf3 {[%clk 0:02:59.9]} 3... Nf6 {[%clk 0:02:57.6]}
4. Nc3 {[%clk 0:03:00]} 4... a6 {[%clk 0:02:57.5]} 5. g3 {[%clk 0:02:58.7]} 5...
Bf5 {[%clk 0:02:57]} 6. Bg2 {[%clk 0:02:57.9]} 6... e6 {[%clk 0:02:56.9]} 7. Nh4
{[%clk 0:02:53.2]} 7... Bg4 {[%clk 0:02:51.7]} 8. h3 {[%clk 0:02:52.1]} 8... Bh5
{[%clk 0:02:51.9]} 9. g4 {[%clk 0:02:52.4]} 9... Nfd7 {[%clk 0:02:44.2]} 10. Qb3
{[%clk 0:02:34.3]} 10... b5 {[%clk 0:02:40.8]} 11. cxd5 {[%clk 0:02:31.6]} 11...
exd5 {[%clk 0:02:35]} 12. Nf5 {[%clk 0:01:43.7]} 12... Bg6 {[%clk 0:02:31.7]}
13. e4 {[%clk 0:01:43.8]} 13... Bxf5 {[%clk 0:02:21.1]} 14. gxf5 {[%clk
0:01:42.9]} 14... b4 {[%clk 0:02:12.5]} 15. exd5 {[%clk 0:01:35.6]} 15... bxc3
{[%clk 0:01:59.8]} 16. dxc6 {[%clk 0:01:35.6]} 16... Nb6 {[%clk 0:01:31.9]} 17.
bxc3 {[%clk 0:01:34.8]} 17... Bd6 {[%clk 0:01:26.5]} 18. O-O {[%clk 0:01:31]}
18... O-O {[%clk 0:01:26]} 19. c4 {[%clk 0:01:26.8]} 19... Bc7 {[%clk
0:01:24.9]} 20. c5 {[%clk 0:01:21.8]} 20... Nc8 {[%clk 0:01:22.7]} 21. d5 {[%clk
0:01:19.8]} 21... Qf6 {[%clk 0:01:14.1]} 22. Ba3 {[%clk 0:01:04.5]} 22... Nxc6
{[%clk 0:01:06]} 23. dxc6 {[%clk 0:00:57.8]} 23... Qe5 {[%clk 0:01:00.6]} 24.
Qg3 {[%clk 0:00:52.2]} 24... Qxa1 {[%clk 0:00:52.9]} 25. Rxa1 {[%clk 0:00:37.3]}
25... Bxg3 {[%clk 0:00:51.1]} 26. fxg3 {[%clk 0:00:38.2]} 26... Ra7 {[%clk
0:00:46]} 27. Rb1 {[%clk 0:00:36.6]} 27... Re8 {[%clk 0:00:42.1]} 28. Rb7 {[%clk
0:00:33]} 28... Re7 {[%clk 0:00:41.7]} 29. Bb4 {[%clk 0:00:30.4]} 29... a5
{[%clk 0:00:35.1]} 30. Bd2 {[%clk 0:00:26.1]} 30... Kf8 {[%clk 0:00:19.7]} 31.
Bf4 {[%clk 0:00:20.8]} 31... Ke8 {[%clk 0:00:14.3]} 32. Bd5 {[%clk 0:00:15.2]}
32... f6 {[%clk 0:00:09.6]} 33. Bd6 {[%clk 0:00:12.8]} 33... Re1+ {[%clk
0:00:05.8]} 34. Kf2 {[%clk 0:00:13]} 34... Rd1 {[%clk 0:00:06.3]} 35. Bf7+
{[%clk 0:00:07.8]} 35... Kd8 {[%clk 0:00:05.5]} 36. c7+ {[%clk 0:00:08]} 36...
Kd7 {[%clk 0:00:04.8]} 37. Be6+ {[%clk 0:00:06.7]} 37... Kc6 {[%clk 0:00:05.1]}
38. Rb6+ {[%clk 0:00:03.5]} 38... Nxb6 {[%clk 0:00:04]} 39. cxb6 {[%clk
0:00:04]} 39... Ra8 {[%clk 0:00:03.2]} 40. Bf4 {[%clk 0:00:02.4]} 40... Kb7
{[%clk 0:00:03]} 41. Be3 {[%clk 0:00:01.4]} 41... Rd6 {[%clk 0:00:02.5]} 0-1

[Event "Early-Titled-Tuesday-Blitz-January-30-2024"]
[Site "Chess.com"]
[Date "2024.01.30"]
[Round "3"]
[White "vlad10898"]
[Black "jeetjain"]
[Result "0-1"]
[WhiteElo "2808"]
[BlackElo "2549"]
[TimeControl "180+1"]
[EndTime "8:31:15 PST"]
[Termination "jeetjain won by resignation"]

1. e4 {[%clk 0:02:58.8]} 1... c6 {[%clk 0:02:42.4]} 2. d4 {[%clk 0:02:56.2]}
2... d5 {[%clk 0:02:42.2]} 3. exd5 {[%clk 0:02:48.5]} 3... cxd5 {[%clk
0:02:42.2]} 4. Bd3 {[%clk 0:02:47.7]} 4... Nf6 {[%clk 0:02:42.7]} 5. c3 {[%clk
0:02:41.5]} 5... Nc6 {[%clk 0:02:42.8]} 6. Bf4 {[%clk 0:02:40.4]} 6... Bg4
{[%clk 0:02:42.6]} 7. Qb3 {[%clk 0:02:39.6]} 7... Qd7 {[%clk 0:02:40.7]} 8. Nd2
{[%clk 0:02:35.7]} 8... e6 {[%clk 0:02:40.8]} 9. Ngf3 {[%clk 0:02:35.5]} 9...
Be7 {[%clk 0:02:38]} 10. Ne5 {[%clk 0:02:33.3]} 10... Qc8 {[%clk 0:02:22.8]} 11.
Nxg4 {[%clk 0:02:32.6]} 11... Nxg4 {[%clk 0:02:22.1]} 12. O-O {[%clk 0:02:31.3]}
12... O-O {[%clk 0:02:20.9]} 13. Qd1 {[%clk 0:01:59.1]} 13... Nf6 {[%clk
0:02:20.1]} 14. Qf3 {[%clk 0:01:57.7]} 14... Qd7 {[%clk 0:02:09]} 15. Qh3 {[%clk
0:01:56.9]} 15... g6 {[%clk 0:02:06.9]} 16. Nf3 {[%clk 0:01:51.6]} 16... Nh5
{[%clk 0:01:59.8]} 17. Bh6 {[%clk 0:01:49.7]} 17... Rfb8 {[%clk 0:01:55.3]} 18.
Rae1 {[%clk 0:01:20.5]} 18... b5 {[%clk 0:01:54.5]} 19. g4 {[%clk 0:01:16.6]}
19... Ng7 {[%clk 0:01:42]} 20. Ng5 {[%clk 0:00:55.5]} 20... Bxg5 {[%clk
0:01:41.6]} 21. Bxg5 {[%clk 0:00:55.5]} 21... b4 {[%clk 0:01:41.8]} 22. Qh6
{[%clk 0:00:49.2]} 22... bxc3 {[%clk 0:01:39.7]} 23. bxc3 {[%clk 0:00:48.9]}
23... Ne8 {[%clk 0:01:35.1]} 24. Re3 {[%clk 0:00:44.7]} 24... Rb7 {[%clk
0:01:31.8]} 25. Rfe1 {[%clk 0:00:36.7]} 25... a5 {[%clk 0:01:20]} 26. Rf3 {[%clk
0:00:16.7]} 26... f5 {[%clk 0:01:13.2]} 27. gxf5 {[%clk 0:00:13.9]} 27... exf5
{[%clk 0:01:14.1]} 28. Rfe3 {[%clk 0:00:09.7]} 28... Nd6 {[%clk 0:01:08.9]} 29.
Re7 {[%clk 0:00:03.9]} 29... Nxe7 {[%clk 0:01:06.4]} 30. Rxe7 {[%clk 0:00:03.7]}
30... Qxe7 {[%clk 0:01:06]} 31. Bxe7 {[%clk 0:00:04.1]} 31... Rxe7 {[%clk
0:01:06.9]} 32. Qf4 {[%clk 0:00:04.2]} 32... Re6 {[%clk 0:01:00.4]} 33. Bc2
{[%clk 0:00:02.3]} 33... a4 {[%clk 0:01:00]} 34. Kg2 {[%clk 0:00:01.7]} 34...
Kf7 {[%clk 0:00:51.2]} 35. Qf3 {[%clk 0:00:02]} 35... Ra5 {[%clk 0:00:50.6]} 36.
Bd3 {[%clk 0:00:02.3]} 36... Ne4 {[%clk 0:00:47.1]} 37. Qh3 {[%clk 0:00:02.2]}
37... h5 {[%clk 0:00:46.3]} 38. c4 {[%clk 0:00:02.6]} 38... Nf6 {[%clk
0:00:41.2]} 39. c5 {[%clk 0:00:02.7]} 39... a3 {[%clk 0:00:39.9]} 40. Qg3 {[%clk
0:00:03]} 40... Ne8 {[%clk 0:00:36.2]} 41. Qb8 {[%clk 0:00:02.9]} 41... Re7
{[%clk 0:00:33]} 42. Bb5 {[%clk 0:00:02.4]} 42... Nf6 {[%clk 0:00:30.5]} 43. c6
{[%clk 0:00:02]} 43... Raa7 {[%clk 0:00:30.2]} 44. Qb6 {[%clk 0:00:01.2]} 44...
Rac7 {[%clk 0:00:29.8]} 45. Ba6 {[%clk 0:00:01.2]} 45... Ne4 {[%clk 0:00:29]}
46. Bb7 {[%clk 0:00:01.7]} 46... g5 {[%clk 0:00:22.6]} 47. Qa5 {[%clk
0:00:02.1]} 47... Ke6 {[%clk 0:00:20.2]} 48. Qxa3 {[%clk 0:00:02.3]} 48... g4
{[%clk 0:00:20.3]} 49. Qe3 {[%clk 0:00:01.8]} 49... Rf7 {[%clk 0:00:19.5]} 50.
Qf4 {[%clk 0:00:01.8]} 50... Kf6 {[%clk 0:00:17.7]} 51. Qe5+ {[%clk 0:00:02]}
51... Kg5 {[%clk 0:00:18.2]} 52. f4+ {[%clk 0:00:01.5]} 52... gxf3+ {[%clk
0:00:18.1]} 53. Kxf3 {[%clk 0:00:01.9]} 53... h4 {[%clk 0:00:19]} 54. Qxe4
{[%clk 0:00:02.1]} 54... fxe4+ {[%clk 0:00:19]} 0-1

[Event "Early-Titled-Tuesday-Blitz-January-30-2024"]
[Site "Chess.com"]
[Date "2024.01.30"]
[Round "3"]
[White "TokChess"]
[Black "kai_nov"]
[Result "1-0"]
[WhiteElo "2530"]
[BlackElo "2273"]
[TimeControl "180+1"]
[EndTime "8:31:16 PST"]
[Termination "TokChess won by checkmate"]

1. c4 {[%clk 0:03:00.9]} 1... e5 {[%clk 0:02:40.2]} 2. g3 {[%clk 0:02:59.5]}
2... Nf6 {[%clk 0:02:39.4]} 3. Bg2 {[%clk 0:03:00]} 3... Nc6 {[%clk 0:02:33.4]}
4. Nc3 {[%clk 0:02:58.8]} 4... Bb4 {[%clk 0:02:30.4]} 5. Nd5 {[%clk 0:02:58.4]}
5... O-O {[%clk 0:02:28]} 6. Nxb4 {[%clk 0:02:57.9]} 6... Nxb4 {[%clk 0:02:28]}
7. Nf3 {[%clk 0:02:53]} 7... e4 {[%clk 0:02:21.6]} 8. Nd4 {[%clk 0:02:49.7]}
8... c5 {[%clk 0:02:19.5]} 9. Nc2 {[%clk 0:02:48.7]} 9... Nxc2+ {[%clk
0:02:08.5]} 10. Qxc2 {[%clk 0:02:48.5]} 10... Re8 {[%clk 0:02:08.3]} 11. d3
{[%clk 0:02:42.7]} 11... d5 {[%clk 0:01:43.6]} 12. O-O {[%clk 0:02:36.2]} 12...
exd3 {[%clk 0:01:39.9]} 13. Qxd3 {[%clk 0:02:34.5]} 13... d4 {[%clk 0:01:36.2]}
14. Bf4 {[%clk 0:02:13.4]} 14... Qb6 {[%clk 0:01:32]} 15. b3 {[%clk 0:02:02.1]}
15... Bg4 {[%clk 0:01:23.3]} 16. Rfe1 {[%clk 0:02:00.5]} 16... Bh5 {[%clk
0:01:22.3]} 17. e4 {[%clk 0:01:51.8]} 17... dxe3 {[%clk 0:01:17.7]} 18. Rxe3
{[%clk 0:01:43.5]} 18... Bg6 {[%clk 0:01:15.3]} 19. Qe2 {[%clk 0:01:37.5]} 19...
Rxe3 {[%clk 0:01:14]} 20. Bxe3 {[%clk 0:01:37.4]} 20... Re8 {[%clk 0:01:11.3]}
21. Rd1 {[%clk 0:01:21.8]} 21... Bh5 {[%clk 0:01:01.8]} 22. Bf3 {[%clk
0:01:21.2]} 22... Bxf3 {[%clk 0:01:01.2]} 23. Qxf3 {[%clk 0:01:22.1]} 23... h6
{[%clk 0:00:53.2]} 24. Qf5 {[%clk 0:01:12.3]} 24... Ne4 {[%clk 0:00:49.1]} 25.
Rd7 {[%clk 0:01:03.3]} 25... Qe6 {[%clk 0:00:39.8]} 26. Qxe6 {[%clk 0:01:01]}
26... Rxe6 {[%clk 0:00:39.2]} 27. Rxb7 {[%clk 0:01:00.8]} 27... Ra6 {[%clk
0:00:39]} 28. a4 {[%clk 0:00:56.1]} 28... Rb6 {[%clk 0:00:36.3]} 29. Rxb6 {[%clk
0:00:51.7]} 29... axb6 {[%clk 0:00:36.1]} 30. Kf1 {[%clk 0:00:49.3]} 30... Kf8
{[%clk 0:00:35.9]} 31. Ke2 {[%clk 0:00:49.1]} 31... Ke7 {[%clk 0:00:35.8]} 32.
Kd3 {[%clk 0:00:47.6]} 32... Nf6 {[%clk 0:00:35.3]} 33. a5 {[%clk 0:00:45.7]}
33... bxa5 {[%clk 0:00:31.7]} 34. Bxc5+ {[%clk 0:00:45.5]} 34... Kd7 {[%clk
0:00:32]} 35. Bb6 {[%clk 0:00:45.1]} 35... Kc6 {[%clk 0:00:32.1]} 36. Bxa5
{[%clk 0:00:45]} 36... Ng4 {[%clk 0:00:32.2]} 37. f3 {[%clk 0:00:40.8]} 37...
Nxh2 {[%clk 0:00:31.5]} 38. Ke2 {[%clk 0:00:38]} 38... g5 {[%clk 0:00:28.5]} 39.
g4 {[%clk 0:00:32.3]} 39... f5 {[%clk 0:00:21.3]} 40. gxf5 {[%clk 0:00:29.3]}
40... Kd6 {[%clk 0:00:19.9]} 41. b4 {[%clk 0:00:27.4]} 41... h5 {[%clk
0:00:19.5]} 42. c5+ {[%clk 0:00:18.5]} 42... Ke5 {[%clk 0:00:19.2]} 43. Bc7+
{[%clk 0:00:18.4]} 43... Kxf5 {[%clk 0:00:19.4]} 44. Bxh2 {[%clk 0:00:19.3]}
44... Ke6 {[%clk 0:00:19.6]} 45. b5 {[%clk 0:00:19.3]} 45... Kd5 {[%clk
0:00:20.2]} 46. b6 {[%clk 0:00:18.3]} 46... Kc6 {[%clk 0:00:20.3]} 47. Bd6
{[%clk 0:00:17.5]} 47... h4 {[%clk 0:00:20.4]} 48. Kf2 {[%clk 0:00:17.6]} 48...
h3 {[%clk 0:00:19.7]} 49. Kg3 {[%clk 0:00:17.4]} 49... g4 {[%clk 0:00:20]} 50.
fxg4 {[%clk 0:00:16.6]} 50... h2 {[%clk 0:00:20.1]} 51. Kxh2 {[%clk 0:00:17.5]}
51... Kb5 {[%clk 0:00:19.7]} 52. Kg3 {[%clk 0:00:18.4]} 52... Kc4 {[%clk
0:00:20]} 53. Kf4 {[%clk 0:00:18.3]} 53... Kd3 {[%clk 0:00:20.4]} 54. Ke5 {[%clk
0:00:18.2]} 54... Kc4 {[%clk 0:00:21]} 55. b7 {[%clk 0:00:18.7]} 55... Kd3
{[%clk 0:00:21.4]} 56. b8=Q {[%clk 0:00:18.7]} 56... Kc4 {[%clk 0:00:21.8]} 57.
c6 {[%clk 0:00:18.4]} 57... Kd3 {[%clk 0:00:21.7]} 58. Qb3+ {[%clk 0:00:17.2]}
58... Ke2 {[%clk 0:00:21.2]} 59. Ke4 {[%clk 0:00:17]} 59... Kf2 {[%clk
0:00:21.4]} 60. Qf3+ {[%clk 0:00:16.8]} 60... Ke1 {[%clk 0:00:21.1]} 61. Qg2
{[%clk 0:00:16.3]} 61... Kd1 {[%clk 0:00:20.2]} 62. Kd3 {[%clk 0:00:16.1]} 62...
Kc1 {[%clk 0:00:21.1]} 63. Qc2# {[%clk 0:00:15.9]} 1-0